bitfinex/quotes_BTCUSD_20260103
["timestamp","ask_amount","ask_price","bid_price","bid_amount"]
[1767475670519,0.01106035,90413.0,90407.0,0.06570712]
[1767475671328,0.05960028,90412.0,90409.0,0.01106084]
[1767475671535,0.05960028,90412.0,90408.0,0.01106084]
[1767475671878,0.05960028,90412.0,90409.0,0.01106084]
[1767475672068,0.05960028,90412.0,90408.0,0.01006184]
[1767475673269,0.04853981,90412.0,90409.0,0.01106084]
[1767475673469,0.05960028,90412.0,90408.0,0.01006184]
[1767475673726,0.05960028,90412.0,90408.0,0.01001787]
[1767475674953,0.05960041,90411.0,90408.0,0.01001787]
[1767475675216,0.04853981,90411.0,90408.0,0.01001787]
[1767475676598,0.05960041,90411.0,90408.0,0.01001787]
[1767475676867,0.05960041,90411.0,90407.0,0.01040173]
[1767475678779,0.0110606,90411.0,90408.0,0.01106096]
[1767475680139,0.0110606,90411.0,90407.0,0.01040173]
[1767475680672,0.01106072,90410.0,90406.0,0.01106121]
[1767475681667,0.01106084,90409.0,90405.0,0.01106133]
[1767475682048,0.01106084,90409.0,90400.0,0.01106194]
[1767475682049,0.01106096,90408.0,90401.0,0.05530905]
[1767475682266,0.05790985,90407.0,90403.0,0.01106157]
[1767475682507,0.06636549,90409.0,90396.0,0.01106243]
[1767475682508,0.01106182,90401.0,90396.0,0.01106243]
[1767475682680,0.01106194,90400.0,90397.0,0.02212]
[1767475682859,0.0110617,90402.0,90397.0,0.02212]
[1767475682860,0.0110617,90402.0,90398.0,0.01106219]
[1767475683065,0.07636982,90403.0,90398.0,0.01106219]
[1767475683066,0.05791033,90403.0,90400.0,0.000999]
[1767475683415,0.05530649,90406.0,90401.0,0.01106182]
[1767475683416,0.01106121,90406.0,90401.0,0.01106182]
[1767475683620,0.05790997,90406.0,90401.0,0.06637058]
[1767475684276,0.01106121,90406.0,90401.0,0.06637058]
[1767475684888,0.01106121,90406.0,90402.0,0.0110617]
[1767475686571,0.06636664,90407.0,90403.0,0.01106157]
[1767475686773,0.01106084,90409.0,90404.0,0.01106145]
[1767475687073,0.01106096,90408.0,90404.0,0.01106145]
[1767475688089,0.01106109,90407.0,90403.0,0.01106157]
[1767475691839,0.01106121,90406.0,90402.0,0.0110617]
[1767475692055,0.01,90402.0,90400.0,0.01106194]
[1767475692459,0.01106145,90404.0,90400.0,0.01106194]
[1767475693407,0.01106145,90404.0,90401.0,0.01106182]
[1767475694312,0.01106145,90404.0,90400.0,0.01106194]
[1767475694493,0.01106133,90405.0,90401.0,0.01106182]
[1767475694864,0.06636766,90406.0,90402.0,0.0110617]
[1767475695533,0.02106109,90407.0,90403.0,0.01106157]
[1767475695699,0.01,90407.0,90403.0,0.01106157]
[1767475696061,0.009001,90407.0,90403.0,0.01106157]
[1767475696316,0.009001,90407.0,90404.0,0.01106145]
[1767475696689,0.009001,90407.0,90404.0,0.11339236]
[1767475697506,0.009001,90407.0,90404.0,0.06636837]
[1767475697910,0.009001,90407.0,90404.0,0.01106145]
[1767475698321,0.05530416,90410.0,90405.0,0.01106133]
[1767475698527,0.05530416,90410.0,90405.0,0.05808532]
[1767475698726,0.05530416,90410.0,90405.0,0.01106133]
[1767475699459,0.000999,90405.0,90404.0,0.01106145]
[1767475699591,0.01106109,90407.0,90404.0,0.01106145]
[1767475701815,0.01106109,90407.0,90403.0,0.06636909]
[1767475702016,0.01106121,90406.0,90402.0,0.0110617]
[1767475702244,0.01106109,90407.0,90404.0,0.01106145]
[1767475703294,0.06636627,90408.0,90404.0,0.01106145]
[1767475703549,0.01,90407.0,90404.0,0.01106145]
[1767475706393,0.01,90407.0,90403.0,0.06636939]
[1767475707266,0.01,90407.0,90405.0,0.05530621]
[1767475709062,0.01,90407.0,90404.0,0.01106145]
[1767475709364,0.000999,90405.0,90404.0,0.01106145]
[1767475709764,0.01,90407.0,90404.0,0.01106145]
[1767475714556,0.01,90407.0,90404.0,0.06636834]
[1767475714773,0.01,90411.0,90408.0,0.01106096]
[1767475714901,0.01,90411.0,90409.0,0.05530422]
[1767475715949,0.01,90411.0,90409.0,0.05521311]
[1767475716591,0.02396026,90414.0,90411.0,0.06636306]
[1767475716724,7.138e-05,90414.0,90411.0,0.06536406]
[1767475717333,7.138e-05,90414.0,90411.0,0.0100616]
[1767475718587,0.01007138,90414.0,90411.0,0.0100616]
[1767475720614,0.01007138,90414.0,90411.0,0.06536424]
[1767475723504,0.01007138,90414.0,90412.0,0.05530204]
[1767475724734,0.00907238,90414.0,90412.0,0.05530204]
[1767475726031,0.000999,90412.0,90411.0,0.0100616]
[1767475726688,0.00907238,90414.0,90411.0,0.0100616]
[1767475726894,0.00907238,90414.0,90411.0,0.06536409]
[1767475728283,0.00907238,90414.0,90411.0,0.0100616]
[1767475728531,0.00907238,90414.0,90411.0,0.00879591]
[1767475729071,0.02013261,90414.0,90411.0,0.00879591]
[1767475729871,0.01106096,90408.0,90403.0,0.03318157]
[1767475730068,0.01106096,90408.0,90403.0,0.08848931]
[1767475730572,0.01106109,90407.0,90403.0,0.03318157]
[1767475730871,0.05872441,90408.0,90404.0,0.01106145]
[1767475731457,0.01106096,90408.0,90404.0,0.01106145]
[1767475731720,0.01106096,90408.0,90405.0,0.01106133]
[1767475731922,0.01106096,90408.0,90405.0,0.01006233]
[1767475733278,0.02106133,90405.0,90396.0,0.01106243]
[1767475733424,0.05872502,90403.0,90400.0,0.02212]
[1767475734656,0.05872502,90403.0,90400.0,0.03313798]
[1767475734858,0.04766345,90403.0,90400.0,0.03313798]
[1767475735126,0.06636609,90408.0,90403.0,0.01206057]
[1767475735302,0.01106109,90407.0,90403.0,0.01106157]
[1767475740342,0.01106096,90408.0,90404.0,0.01106145]
[1767475741487,0.01106109,90407.0,90403.0,0.01106157]
[1767475741669,0.01106121,90406.0,90402.0,0.0110617]
[1767475743201,0.05872429,90409.0,90403.0,0.05530789]
[1767475743404,0.01106109,90407.0,90404.0,0.01106145]
[1767475743604,0.01106121,90406.0,90402.0,0.0110617]
[1767475743747,0.01106109,90407.0,90403.0,0.01106157]
[1767475744340,0.01,90406.0,90403.0,0.01106157]
[1767475747150,0.02106121,90406.0,90402.0,0.0110617]
[1767475748649,0.01,90406.0,90403.0,0.01106157]
[1767475748822,0.03106121,90406.0,90402.0,0.0110617]
[1767475749169,0.02,90406.0,90403.0,0.01106157]
[1767475749571,0.019001,90406.0,90403.0,0.06636898]
[1767475749812,0.019001,90406.0,90403.0,0.01106157]
[1767475751017,0.019001,90406.0,90404.0,0.05530728]
[1767475751225,0.10069311,90419.0,90411.0,0.0110606]
[1767475751375,0.01105986,90417.0,90412.0,0.05530191]
[1767475751577,0.05645441,90419.0,90412.0,0.05464256]
[1767475751792,0.05645441,90419.0,90412.0,0.05459701]
[1767475752328,0.05645441,90419.0,90411.0,0.06631964]
[1767475753038,0.04539479,90415.0,90413.0,0.01106035]
[1767475753247,0.04545423,90415.0,90413.0,0.01096397]
[1767475753779,0.04545423,90415.0,90413.0,0.06626575]
[1767475755634,0.04545423,90415.0,90413.0,0.06526675]
[1767475756572,0.04545423,90415.0,90413.0,0.00996497]
[1767475757383,5.944e-05,90415.0,90413.0,0.00996497]
[1767475757760,0.01005944,90415.0,90413.0,0.00996497]
[1767475758165,0.01005944,90415.0,90411.0,0.01101664]
[1767475758723,0.01005944,90415.0,90412.0,0.01106047]
[1767475761311,0.01005944,90415.0,90413.0,0.05530123]
[1767475761504,0.01105974,90418.0,90415.0,0.000999]
[1767475761629,0.00099899,90415.0,90413.0,0.01106035]
[1767475761830,0.00099899,90415.0,90412.0,0.01106047]
[1767475763590,0.01105986,90417.0,90413.0,0.01106035]
[1767475764108,0.01,90415.0,90413.0,0.01106035]
[1767475764455,0.01,90415.0,90413.0,0.0110148]
[1767475764883,0.01,90415.0,90412.0,0.01106047]
[1767475765324,0.02106011,90415.0,90412.0,0.01106047]
[1767475765528,0.02106011,90415.0,90411.0,0.01101664]
[1767475766218,0.01106023,90414.0,90410.0,0.01106072]
[1767475766422,0.01106023,90414.0,90411.0,0.0110606]
[1767475766773,0.02106011,90415.0,90411.0,0.0110606]
[1767475766974,0.01,90415.0,90412.0,0.01106047]
[1767475767430,0.02106011,90415.0,90412.0,0.01106047]
[1767475767632,0.02106011,90415.0,90411.0,0.0110606]
[1767475769987,0.01,90415.0,90412.0,0.01106047]
[1767475770198,0.01,90415.0,90412.0,0.06636275]
[1767475770408,0.06635972,90417.0,90415.0,0.000999]
[1767475770613,0.01105986,90417.0,90415.0,0.000999]
[1767475770814,0.01105974,90418.0,90414.0,0.01106023]
[1767475773525,0.02212,90419.0,90415.0,0.01106011]
[1767475773930,0.03317962,90419.0,90415.0,0.01106011]
[1767475775252,0.04317962,90419.0,90415.0,0.01106011]
[1767475777059,0.04317962,90419.0,90414.0,0.01106023]
[1767475777937,0.04317962,90419.0,90415.0,0.01106011]
[1767475779245,0.04317962,90419.0,90414.0,0.06636092]
[1767475779825,0.04317962,90419.0,90415.0,0.01106011]
[1767475780028,0.04317962,90419.0,90414.0,0.01106023]
[1767475780467,0.06706008,90419.0,90415.0,0.01106011]
[1767475781364,0.05500146,90419.0,90416.0,0.06635992]
[1767475781706,0.01105913,90423.0,90420.0,0.0110595]
[1767475781707,0.02388046,90423.0,90420.0,0.0110595]
[1767475781857,0.02212,90424.0,90418.0,0.04521184]
[1767475782058,0.02212,90424.0,90418.0,0.04516629]
[1767475782475,0.01105937,90421.0,90418.0,0.04516629]
[1767475782684,0.01105925,90422.0,90418.0,0.04516629]
[1767475783082,0.01105925,90422.0,90410.0,0.04521184]
[1767475783761,0.03317901,90424.0,90410.0,0.05627256]
[1767475783906,0.01105974,90418.0,90410.0,0.04521184]
[1767475784108,0.01105998,90416.0,90410.0,0.04521184]
[1767475784328,0.01106035,90413.0,90410.0,0.04521184]
[1767475784798,0.055303,90411.0,90410.0,0.04521184]
[1767475785218,0.055303,90411.0,90409.0,0.02212]
[1767475785425,0.055303,90411.0,90409.0,0.021121]
[1767475785678,0.054304,90411.0,90409.0,0.021121]
[1767475787266,0.054304,90411.0,90409.0,1e-08]
[1767475787587,0.01106109,90407.0,90404.0,0.00161666]
[1767475787758,0.01106109,90407.0,90406.0,0.00161666]
[1767475787958,0.01106084,90409.0,90406.0,0.00161666]
[1767475788821,0.05630506,90406.0,90405.0,0.02212]
[1767475789047,0.000999,90406.0,90405.0,0.02212]
[1767475789250,0.05530582,90407.0,90405.0,0.02212]
[1767475789725,0.06636621,90408.0,90405.0,0.02212]
[1767475790212,0.01106096,90408.0,90405.0,0.02212]
[1767475790615,0.06636639,90408.0,90405.0,0.02212]
[1767475790799,0.06636639,90408.0,90405.0,0.021121]
[1767475791356,0.05530586,90407.0,90405.0,0.021121]
[1767475791761,0.06636639,90408.0,90405.0,0.021121]
[1767475792667,0.01106096,90408.0,90405.0,0.021121]
[1767475796795,0.01106084,90409.0,90405.0,0.03218233]
[1767475797299,0.01106072,90410.0,90406.0,0.01106121]
[1767475797528,0.06636264,90413.0,90410.0,0.000999]
[1767475797781,0.05530273,90412.0,90410.0,0.000999]
[1767475797969,0.05530273,90412.0,90406.0,0.01106121]
[1767475797970,0.06636397,90411.0,90406.0,0.01106121]
[1767475798256,0.01106084,90409.0,90405.0,0.03218233]
[1767475798409,0.01106084,90409.0,90406.0,0.02212]
[1767475799047,0.01106072,90410.0,90407.0,0.01106109]
[1767475799250,0.01097279,90410.0,90407.0,0.01106109]
[1767475799429,0.0110606,90411.0,90407.0,0.01106109]
[1767475800015,0.01106072,90410.0,90406.0,0.03318121]
[1767475800216,0.01106047,90412.0,90410.0,0.000999]
[1767475800463,0.01106047,90412.0,90408.0,0.01106096]
[1767475800671,0.01106047,90412.0,90409.0,0.02212]
[1767475800878,0.01106096,90408.0,90404.0,5.944e-05]
[1767475801159,0.04848477,90407.0,90405.0,0.03318133]
[1767475801336,0.04848477,90407.0,90401.0,0.01106182]
[1767475801337,0.01106231,90397.0,90390.0,0.0001494]
[1767475801569,0.05531029,90400.0,90397.0,0.04784755]
[1767475801745,0.01006331,90397.0,90394.0,0.04784755]
[1767475801954,0.06537534,90397.0,90395.0,0.06996755]
[1767475802737,0.01106219,90398.0,90395.0,0.06996755]
[1767475803140,0.01106206,90399.0,90396.0,0.04784755]
[1767475803983,0.0109331,90399.0,90396.0,0.04784755]
[1767475804190,0.01106194,90400.0,90396.0,0.05890998]
[1767475805523,0.01106194,90400.0,90398.0,0.04784755]
[1767475806290,0.01106182,90401.0,90398.0,0.04784755]
[1767475806491,0.01106157,90403.0,90398.0,0.05890974]
[1767475806691,0.01106023,90414.0,90407.0,0.01106109]
[1767475806916,0.01106035,90413.0,90406.0,0.05890876]
[1767475807126,0.05530295,90412.0,90407.0,0.05890864]
[1767475807331,0.01106072,90410.0,90407.0,0.04784755]
[1767475807497,0.0110606,90411.0,90407.0,0.05890864]
[1767475807695,0.01106035,90413.0,90408.0,0.05890851]
[1767475807896,0.01106023,90414.0,90413.0,0.04784755]
[1767475808100,0.01106023,90414.0,90413.0,0.04684855]
[1767475811818,0.01106011,90415.0,90412.0,0.04784755]
[1767475814688,0.06635799,90419.0,90413.0,0.0589079]
[1767475814891,0.0110595,90420.0,90417.0,0.04784755]
[1767475815279,0.06635748,90420.0,90417.0,0.04684855]
[1767475815454,0.02105986,90417.0,90414.0,0.04784755]
[1767475816808,0.05529994,90416.0,90414.0,0.04784755]
[1767475818897,0.05529916,90418.0,90416.0,0.000999]
[1767475819088,0.0663589,90418.0,90414.0,0.05890778]
[1767475820547,0.01105962,90419.0,90415.0,0.01106011]
[1767475820730,0.01105974,90418.0,90414.0,0.05890778]
[1767475821111,0.01105986,90417.0,90414.0,0.04784755]
[1767475821511,0.01105986,90417.0,90414.0,0.04791893]
[1767475821980,0.01105974,90418.0,90414.0,0.05897916]
[1767475822271,0.0110595,90420.0,90418.0,0.04784755]
[1767475822393,0.0110595,90420.0,90418.0,0.000999]
[1767475822818,0.0110595,90420.0,90416.0,0.01105998]
[1767475823336,0.01105962,90419.0,90415.0,0.01106011]
[1767475823994,0.01105974,90418.0,90414.0,0.01113161]
[1767475824391,0.01105962,90419.0,90414.0,0.01113161]
[1767475824553,0.01105962,90419.0,90415.0,0.01106011]
[1767475826450,0.0110595,90420.0,90416.0,0.01105998]
[1767475827815,0.01120877,90421.0,90417.0,0.01105986]
[1767475829535,0.0001494,90421.0,90418.0,0.06635846]
[1767475830199,0.0001494,90421.0,90417.0,0.01105986]
[1767475831546,0.01105962,90419.0,90415.0,0.01106011]
[1767475831680,0.01,90417.0,90415.0,0.01106011]
[1767475833106,0.01,90417.0,90414.0,7.138e-05]
[1767475833848,0.01,90417.0,90414.0,0.01113161]
[1767475834212,0.01,90417.0,90414.0,0.0664324]
[1767475834653,0.01105962,90419.0,90416.0,0.01105998]
[1767475835024,0.01105962,90419.0,90414.0,0.0664324]
[1767475835195,0.06635739,90420.0,90415.0,0.06636031]
[1767475836122,0.01105962,90419.0,90415.0,0.01106011]
[1767475836251,0.01105962,90419.0,90415.0,0.0110146]
[1767475836457,0.06635846,90418.0,90414.0,7.138e-05]
[1767475836655,0.01106035,90413.0,90408.0,0.01106096]
[1767475836862,0.0111079,90413.0,90409.0,0.01106084]
[1767475837260,4.755e-05,90413.0,90410.0,0.01106072]
[1767475837597,4.755e-05,90413.0,90410.0,0.06636389]
[1767475838178,4.755e-05,90413.0,90411.0,0.05530262]
[1767475838500,5.5e-07,90413.0,90411.0,0.05530262]
[1767475838930,5.5e-07,90413.0,90412.0,0.04869698]
[1767475844242,0.0001494,90421.0,90418.0,0.06563192]
[1767475844470,0.0001494,90421.0,90419.0,0.04864998]
[1767475845307,0.0001494,90421.0,90420.0,0.0552975]
[1767475845437,0.0001494,90421.0,90420.0,0.10399448]
[1767475845625,0.0001494,90421.0,90420.0,0.04869698]
[1767475845825,0.0001494,90421.0,90420.0,0.10399448]
[1767475846075,0.0001494,90421.0,90420.0,0.04869698]
[1767475846240,0.01105901,90424.0,90421.0,0.04869698]
[1767475847577,0.06635296,90426.0,90422.0,0.01105925]
[1767475847729,0.06635296,90426.0,90421.0,0.05975635]
[1767475847730,0.01105888,90425.0,90421.0,0.05975635]
[1767475848141,0.01105901,90424.0,90421.0,0.04869698]
[1767475850726,0.01105888,90425.0,90421.0,0.05975635]
[1767475851064,0.05577671,90429.0,90421.0,0.05975635]
[1767475851065,0.00048427,90429.0,90427.0,0.10399019]
[1767475851270,0.00048427,90429.0,90427.0,0.04869698]
[1767475851782,0.00048427,90429.0,90426.0,0.06635211]
[1767475852321,2.7e-07,90429.0,90426.0,0.06635211]
[1767475853971,2.7e-07,90429.0,90428.0,0.0552926]
[1767475854105,2.7e-07,90429.0,90428.0,0.05524863]
[1767475854541,2.7e-07,90429.0,90426.0,0.06635211]
[1767475854946,4.783e-05,90429.0,90426.0,0.06635211]
[1767475855730,4.783e-05,90429.0,90426.0,0.06586811]
[1767475856985,4.783e-05,90429.0,90426.0,0.11456509]
[1767475858259,4.783e-05,90429.0,90426.0,0.06586811]
[1767475858783,4.783e-05,90429.0,90427.0,0.04869698]
[1767475858968,0.01105803,90432.0,90429.0,0.04869698]
[1767475859165,0.01105778,90434.0,90429.0,0.05975537]
[1767475859620,0.01105791,90433.0,90429.0,0.05975537]
[1767475860382,0.01105778,90434.0,90431.0,0.04697948]
[1767475862115,0.01105778,90434.0,90430.0,0.01105827]
[1767475862116,0.06634647,90435.0,90434.0,0.04697948]
[1767475862294,0.01634647,90435.0,90430.0,0.01105827]
[1767475862853,0.01105778,90434.0,90430.0,0.01078684]
[1767475863058,0.01925898,90437.0,90434.0,0.01105778]
[1767475863277,0.01925898,90437.0,90434.0,0.07734533]
[1767475863451,0.01925898,90437.0,90434.0,0.06634633]
[1767475863844,0.01925898,90437.0,90434.0,0.06630237]
[1767475864352,0.01925898,90437.0,90435.0,0.05528794]
[1767475864555,0.01825998,90437.0,90435.0,0.05528794]
[1767475865158,0.0001494,90439.0,90438.0,0.05528649]
[1767475865378,0.0861762,90448.0,90435.0,0.00081799]
[1767475865379,0.05018327,90441.0,90435.0,0.00081799]
[1767475865719,0.01105705,90440.0,90435.0,0.01187565]
[1767475865902,0.01105729,90438.0,90435.0,0.00081799]
[1767475866256,0.01105717,90439.0,90435.0,0.01105766]
[1767475867085,0.01105729,90438.0,90434.0,0.05803726]
[1767475867497,0.01105717,90439.0,90438.0,0.04697948]
[1767475868281,0.01105742,90437.0,90434.0,0.04697948]
[1767475868506,0.01105803,90432.0,90428.0,0.058038]
[1767475868661,0.01105766,90435.0,90428.0,0.058038]
[1767475868662,0.01105791,90433.0,90430.0,0.04697948]
[1767475869122,0.01105778,90434.0,90430.0,0.05803775]
[1767475869681,0.01105778,90434.0,90431.0,0.06909948]
[1767475869923,0.01105766,90435.0,90431.0,0.08015763]
[1767475870099,0.01105766,90435.0,90431.0,0.05803763]
[1767475870300,0.01105766,90435.0,90432.0,0.02212]
[1767475870906,0.01105766,90435.0,90432.0,0.06909948]
[1767475871635,0.01105766,90435.0,90433.0,0.02212]
[1767475873035,0.01105754,90436.0,90433.0,0.02212]
[1767475873291,0.01105754,90436.0,90433.0,0.02207604]
[1767475873492,0.01105717,90439.0,90436.0,0.04797848]
[1767475873697,0.01105742,90437.0,90433.0,0.03313395]
[1767475875059,0.01105729,90438.0,90434.0,0.01105778]
[1767475875258,0.01105717,90439.0,90435.0,0.01105766]
[1767475876835,0.01105729,90438.0,90435.0,0.01105766]
[1767475877060,0.01105717,90439.0,90435.0,0.01101466]
[1767475877630,0.01105729,90438.0,90435.0,0.0109707]
[1767475878011,0.01105717,90439.0,90435.0,0.0109707]
[1767475878750,0.01105717,90439.0,90435.0,0.01081732]
[1767475879672,0.01105717,90439.0,90435.0,0.01067279]
[1767475880789,0.06634276,90440.0,90436.0,0.01105754]
[1767475881078,0.01105705,90440.0,90436.0,0.01105754]
[1767475882180,0.06634122,90442.0,90436.0,0.06534498]
[1767475883087,0.01105656,90444.0,90440.0,0.01105705]
[1767475883290,0.01105644,90445.0,90441.0,0.01078429]
[1767475883526,0.06633243,90454.0,90440.0,0.02212]
[1767475883727,0.06633291,90453.0,90441.0,0.02211386]
[1767475883936,0.01105558,90452.0,90446.0,1e-08]
[1767475884142,0.01105558,90452.0,90442.0,0.04697948]
[1767475884269,0.01105534,90454.0,90441.0,0.22113619]
[1767475884632,0.01105558,90452.0,90441.0,0.22113619]
[1767475884837,0.01105595,90449.0,90445.0,1e-08]
[1767475885192,0.0003551,90456.0,90445.0,1e-08]
[1767475885392,0.0003551,90456.0,90453.0,0.01105546]
[1767475885721,0.0003551,90456.0,90453.0,0.08845226]
[1767475885925,0.02042017,90459.0,90458.0,0.05527427]
[1767475885926,1e-08,90459.0,90458.0,0.05527427]
[1767475886128,0.03205414,90470.0,90459.0,0.01105473]
[1767475886448,0.02100076,90470.0,90461.0,0.05527243]
[1767475887364,0.02100076,90470.0,90460.0,0.02212]
[1767475887365,0.01,90489.0,90481.0,0.02158137]
[1767475887529,0.02995097,90511.0,90493.0,0.01]
[1767475887530,10.03653322,90500.0,90493.0,0.01]
[1767475887732,0.05524335,90499.0,90494.0,0.021121]
[1767475887912,9.94712176,90500.0,90494.0,0.011121]
[1767475888117,8.35856478,90500.0,90494.0,0.011121]
[1767475888350,7.24610903,90500.0,90494.0,0.011121]
[1767475888514,0.04419421,90498.0,90494.0,0.011121]
[1767475888730,0.05025123,90496.0,90494.0,0.011121]
[1767475888935,0.01105143,90486.0,90479.0,0.01105228]
[1767475889195,0.01105192,90482.0,90475.0,0.05526367]
[1767475889325,0.01105179,90483.0,90475.0,0.0552633]
[1767475889549,0.03316778,90485.0,90477.0,0.01105253]
[1767475889735,0.01105192,90482.0,90476.0,0.01105265]
[1767475889932,0.01105216,90480.0,90473.0,0.01105302]
[1767475890137,0.04775477,90477.0,90471.0,0.02212]
[1767475890333,0.04775477,90477.0,90472.0,0.01105314]
[1767475890575,0.0588073,90477.0,90471.0,0.03317326]
[1767475890738,0.01105253,90477.0,90471.0,0.03317326]
[1767475890946,0.01105253,90477.0,90468.0,0.06632129]
[1767475890947,0.01105277,90475.0,90469.0,0.03317351]
[1767475891290,0.01105265,90476.0,90471.0,0.01105326]
[1767475891468,0.01105241,90478.0,90471.0,0.06631933]
[1767475891635,0.01105277,90475.0,90469.0,0.03317351]
[1767475891836,0.01105265,90476.0,90469.0,0.01105351]
[1767475892052,0.01105277,90475.0,90470.0,0.01105338]
[1767475892265,0.01105265,90476.0,90470.0,0.01105338]
[1767475892509,0.05741309,90477.0,90472.0,0.01105314]
[1767475892704,0.06631395,90479.0,90472.0,0.01105314]
[1767475892912,0.01105253,90477.0,90472.0,0.01105314]
[1767475893290,0.01105228,90479.0,90473.0,0.01105302]
[1767475893505,0.01105228,90479.0,90473.0,0.01090849]
[1767475893704,0.01105241,90478.0,90472.0,0.01105314]
[1767475893905,0.01105241,90478.0,90473.0,0.01105302]
[1767475894310,0.01105253,90477.0,90472.0,0.01105314]
[1767475894870,0.01105228,90479.0,90471.0,0.01105326]
[1767475894871,0.01105228,90479.0,90473.0,0.01105302]
[1767475895191,0.05741248,90482.0,90479.0,0.010999]
[1767475895510,0.01105082,90491.0,90485.0,0.01105155]
[1767475895739,0.04636056,90494.0,90486.0,0.05525716]
[1767475895740,0.01105057,90493.0,90486.0,0.05525716]
[1767475895952,0.01105057,90493.0,90487.0,0.01105131]
[1767475896133,0.0110507,90492.0,90488.0,0.01105118]
[1767475896581,0.0110507,90492.0,90487.0,0.01105131]
[1767475896921,0.01105045,90494.0,90489.0,0.01105106]
[1767475897117,0.05741113,90493.0,90452.0,0.04622012]
[1767475897353,0.04636056,90493.0,90489.0,0.01105106]
[1767475897732,0.01105033,90495.0,90490.0,0.01100544]
[1767475897968,0.01105009,90497.0,90490.0,0.05722556]
[1767475898191,0.02212,90498.0,90496.0,0.04622012]
[1767475898373,7.08526034,90500.0,90496.0,0.05722483]
[1767475898581,7.09631006,90500.0,90496.0,0.04617462]
[1767475899078,7.09631006,90500.0,90496.0,0.05722483]
[1767475899530,7.09666889,90500.0,90496.0,0.05722483]
[1767475899815,4.79673756,90500.0,90497.0,0.06630054]
[1767475899972,4.79673756,90500.0,90499.0,0.05524922]
[1767475899973,4.57182072,90500.0,90499.0,0.05524922]
[1767475900151,4.31837682,90500.0,90499.0,0.05520372]
[1767475900356,4.16481103,90500.0,90499.0,0.05520372]
[1767475900595,4.1316711,90500.0,90499.0,0.05520372]
[1767475900970,3.54266116,90500.0,90499.0,0.05520372]
[1767475901573,3.04495037,90500.0,90499.0,0.05520372]
[1767475901961,2.7680592,90500.0,90499.0,0.05520372]
[1767475902181,2.31360235,90500.0,90499.0,0.05520372]
[1767475902396,2.27054619,90500.0,90499.0,0.05520372]
[1767475902562,2.23741108,90500.0,90499.0,0.05520372]
[1767475902769,2.2372823,90500.0,90499.0,0.05520372]
[1767475902974,2.23723519,90500.0,90499.0,0.05520372]
[1767475903230,1.2249511,90500.0,90497.0,0.01630054]
[1767475903362,1.0278912,90500.0,90497.0,0.02735063]
[1767475903562,0.74382607,90500.0,90497.0,0.02735063]
[1767475903765,0.71069096,90500.0,90498.0,0.05524983]
[1767475903987,0.61680814,90500.0,90498.0,0.05524983]
[1767475904188,0.58367303,90500.0,90498.0,0.05524983]
[1767475904424,0.55053792,90500.0,90498.0,0.05520433]
[1767475904654,0.51740281,90500.0,90498.0,0.05520433]
[1767475904813,0.4842677,90500.0,90498.0,0.05520433]
[1767475905143,0.41392691,90500.0,90498.0,0.05520433]
[1767475905348,0.37611037,90500.0,90498.0,0.05524929]
[1767475905759,0.37412283,90500.0,90498.0,0.05524929]
[1767475906314,0.04650996,90511.0,90506.0,0.01104899]
[1767475906520,0.04661751,90511.0,90507.0,0.021121]
[1767475907275,0.00025695,90511.0,90507.0,0.021121]
[1767475909231,0.04636056,90510.0,90508.0,0.02212]
[1767475909475,0.00025695,90511.0,90507.0,0.01807711]
[1767475909653,0.01104886,90507.0,90495.0,0.04622012]
[1767475909835,0.01104874,90508.0,90497.0,0.04622012]
[1767475910184,0.00025695,90511.0,90501.0,0.04622012]
[1767475910343,0.04636056,90510.0,90498.0,0.01104996]
[1767475910530,0.00025695,90511.0,90499.0,0.04622012]
[1767475910731,0.00025695,90511.0,90503.0,0.04622012]
[1767475910970,0.00025695,90511.0,90504.0,0.02212]
[1767475911375,0.00025695,90511.0,90505.0,0.01104911]
[1767475911570,0.00025695,90511.0,90504.0,0.02125317]
[1767475911774,0.00025695,90511.0,90505.0,0.04622012]
[1767475911974,0.00025695,90511.0,90505.0,0.05726923]
[1767475912226,0.00025695,90511.0,90507.0,0.04622012]
[1767475912371,0.00025695,90511.0,90505.0,0.01104911]
[1767475912574,0.00025695,90511.0,90507.0,0.04622012]
[1767475913195,0.01104667,90525.0,90515.0,0.04622012]
[1767475913418,0.01104703,90522.0,90511.0,0.00025695]
[1767475913875,0.01104691,90523.0,90511.0,0.04622012]
[1767475914036,0.01104679,90524.0,90511.0,0.04622012]
[1767475914369,0.01104691,90523.0,90511.0,0.04622012]
[1767475914503,0.03316667,90525.0,90511.0,0.0572685]
[1767475914732,0.01104679,90524.0,90511.0,0.04622012]
[1767475915155,0.0001494,90528.0,90520.0,0.24622012]
[1767475915356,0.0001494,90528.0,90524.0,0.01074205]
[1767475915588,0.01113545,90535.0,90524.0,0.05591622]
[1767475915589,9e-05,90535.0,90524.0,0.05591622]
[1767475916096,9e-05,90535.0,90530.0,0.2]
[1767475916420,0.04636056,90534.0,90522.0,0.01104703]
[1767475916643,9e-05,90535.0,90524.0,0.05726691]
[1767475916858,0.03316472,90541.0,90532.0,0.04622012]
[1767475916859,0.01104484,90540.0,90532.0,0.04622012]
[1767475917202,0.05522174,90545.0,90536.0,0.04622012]
[1767475917415,0.01104484,90540.0,90536.0,0.04591622]
[1767475917643,0.01104484,90540.0,90531.0,0.02519981]
[1767475917872,0.01104472,90541.0,90531.0,0.00010743]
[1767475918094,0.0110452,90537.0,90531.0,0.00010743]
[1767475918336,0.01104569,90533.0,90518.0,0.01104752]
[1767475918549,0.04636056,90537.0,90533.0,0.000999]
[1767475918716,0.01104496,90539.0,90525.0,0.01104667]
[1767475918894,0.00010737,90539.0,90527.0,0.01104642]
[1767475919299,0.00010737,90539.0,90528.0,0.0110463]
[1767475919502,0.00010737,90539.0,90530.0,0.01104606]
[1767475919889,0.00010737,90539.0,90530.0,0.02519981]
[1767475920502,0.01115233,90539.0,90530.0,0.02519981]
[1767475921082,0.01104508,90538.0,90525.0,0.01104667]
[1767475921277,0.00010737,90539.0,90526.0,0.01104655]
[1767475921409,0.00010737,90539.0,90527.0,0.01104642]
[1767475921616,0.01115233,90539.0,90527.0,0.02519981]
[1767475921857,0.00010737,90539.0,90527.0,0.02519981]
[1767475922662,0.00010737,90539.0,90528.0,0.0110463]
[1767475922881,0.00010737,90539.0,90527.0,0.03624623]
[1767475923058,0.01115233,90539.0,90527.0,0.02519981]
[1767475923505,0.00010737,90539.0,90527.0,0.03624623]
[1767475923778,0.0110452,90537.0,90522.0,0.03620288]
[1767475923978,0.00010737,90539.0,90525.0,0.03620252]
[1767475924201,0.00010737,90539.0,90530.0,0.2]
[1767475924428,0.00010737,90539.0,90522.0,0.22093987]
[1767475924429,0.02622613,90570.0,90550.0,0.2]
[1767475924647,0.02680672,90581.0,90568.0,0.03428254]
[1767475924854,0.02691415,90581.0,90578.0,0.0110402]
[1767475925066,0.01,90589.0,90580.0,0.2]
[1767475925269,0.02738732,90592.0,90581.0,0.02324161]
[1767475925477,0.02738732,90592.0,90578.0,0.0110402]